bitfinex-derivatives/quotes_ETHF0:USTF0_20230402
["timestamp","ask_amount","ask_price","bid_price","bid_amount"]
[1680425552711,4.35863154,1818.0,1817.9,0.825]
[1680425557010,4.64741558,1818.0,1817.8,7.45886843]
[1680425557210,1.15080353,1817.9,1817.8,7.45886843]
[1680425557399,4.35860353,1818.0,1817.8,7.45886843]
[1680425557703,0.86310217,1817.9,1817.8,8.32405812]
[1680425558996,0.86310217,1817.9,1817.8,7.7472645]
[1680425561198,0.86310217,1818.0,1817.8,7.7472645]
[1680425561400,0.86310217,1818.1,1817.9,1.68918969]
[1680425561708,0.86310217,1818.1,1818.0,7.41058486]
[1680425562004,0.86310217,1818.1,1818.0,9.27577455]
[1680425562708,0.86310217,1818.1,1818.0,8.69923444]
[1680425563201,0.86310217,1818.1,1818.0,9.27577748]
[1680425563702,0.86310217,1818.2,1818.0,8.41038399]
[1680425563906,0.86310217,1818.3,1818.1,4.0328]
[1680425564107,0.86310217,1818.3,1818.2,1.39830319]
[1680425564406,0.86310217,1818.4,1818.2,8.68602836]
[1680425564597,0.86310217,1818.4,1818.3,0.825]
[1680425564800,0.86310217,1818.4,1818.3,1.40130319]
[1680425565000,0.86310217,1818.4,1818.3,8.53569179]
[1680425565707,0.86310217,1818.5,1818.3,7.9593886]
[1680425566100,0.86310217,1818.5,1818.3,11.1671886]
[1680425567010,0.86310217,1818.5,1818.4,0.824]
[1680425567203,0.86310217,1818.5,1818.4,1.824]
[1680425567506,24.96310217,1818.6,1818.4,7.53315084]
[1680425568108,24.96310217,1818.6,1818.4,6.53315084]
[1680425568704,0.86310217,1818.6,1818.4,6.53315084]
[1680425573708,5.18360353,1818.8,1818.4,6.53315084]
[1680425573709,0.86310217,1818.7,1818.4,6.53315084]
[1680425574112,1.86310217,1818.7,1818.4,6.53315084]
[1680425574306,0.86310217,1818.7,1818.4,6.53315084]
[1680425574702,26.76310217,1818.6,1818.4,6.53315084]
[1680425575712,26.76310217,1818.6,1818.5,0.14078791]
[1680425576315,25.9,1818.6,1818.5,0.14078791]
[1680425577611,26.76310217,1818.6,1818.5,0.14078791]
[1680425577818,29.97090217,1818.6,1818.5,0.14078791]
[1680425578116,29.97090217,1818.6,1818.3,4.0318]
[1680425579703,29.97090217,1818.6,1818.3,0.824]
[1680425579912,4.0248,1818.4,1818.0,0.57630319]
[1680425580213,1.0,1818.3,1818.0,0.57630319]
[1680425580414,0.817,1818.4,1818.0,0.57630319]
[1680425580615,0.817,1818.4,1818.1,6.3313235]
[1680425580815,0.817,1818.4,1818.1,9.5391235]
[1680425583917,25.9,1818.3,1818.1,9.5391235]
[1680425587116,25.9,1818.3,1818.1,10.3641235]
[1680425590713,25.9,1818.3,1818.2,0.07748765]
[1680425591219,25.9,1818.3,1818.1,10.94042669]
[1680425597640,25.9,1818.3,1818.1,11.80561638]
[1680425597845,25.9,1818.3,1818.2,0.819]
[1680425598146,25.9,1818.3,1818.2,2.39530319]
[1680425599640,25.9,1818.3,1818.2,1.39530319]
[1680425600138,25.9,1818.3,1818.2,3.22030319]
[1680425600438,0.86310217,1819.0,1818.3,33.047]
[1680425600630,0.86310217,1819.1,1818.9,0.825]
[1680425601637,0.86310217,1819.0,1818.9,0.825]
[1680425602436,0.86310217,1819.1,1818.9,0.825]
[1680425602740,1.86310217,1819.1,1818.9,0.825]
[1680425602934,0.86310217,1819.1,1818.9,0.825]
[1680425605743,0.86310217,1819.1,1819.0,0.17263563]
[1680425606246,17.56310217,1819.1,1819.0,0.17263563]
[1680425607048,17.56310217,1819.1,1819.0,0.99763563]
[1680425614346,18.38010217,1819.1,1818.7,0.82]
[1680425614551,3.2078,1818.8,1818.5,0.821]
[1680425614848,1.0,1818.7,1818.5,0.821]
[1680425615050,0.825,1818.6,1818.4,3.78290671]
[1680425615249,0.825,1818.6,1818.4,0.57510671]
[1680425615545,0.825,1818.6,1818.3,1.43776678]
[1680425615546,4.0328,1818.6,1818.3,1.43776678]
[1680425615737,4.0328,1818.6,1818.3,0.57510671]
[1680425616951,3.2078,1818.6,1818.3,1.40010671]
[1680425621651,16.7,1818.5,1818.3,1.40010671]
[1680425622150,16.7,1818.5,1818.4,0.1099831]
[1680425622653,1.0,1818.4,1818.1,1.43776678]
[1680425622849,4.2078,1818.4,1818.1,0.57510671]
[1680425623349,4.2078,1818.4,1818.2,5.82870589]
[1680425623651,3.2078,1818.4,1818.2,5.82870589]
[1680425630157,17.521,1818.5,1818.2,5.82870589]
[1680425630358,0.821,1818.5,1818.2,5.82870589]
[1680425630559,3.2078,1818.3,1818.2,5.82870589]
[1680425631557,4.0328,1818.3,1818.2,5.82870589]
[1680425631758,4.0328,1818.3,1818.1,0.57510671]
[1680425633263,0.825,1818.3,1818.1,0.57510671]
[1680425635156,4.0328,1818.3,1818.1,0.57510671]
[1680425635364,0.825,1818.3,1818.1,0.57510671]
[1680425637058,17.523,1818.4,1818.1,0.57510671]
[1680425640463,0.825,1818.3,1818.1,0.57510671]
[1680425643971,0.825,1818.3,1818.1,1.43776678]
[1680425646473,0.825,1818.3,1818.1,0.57510671]
[1680425649571,0.825,1818.3,1818.1,1.43776678]
[1680425649871,0.825,1818.3,1818.1,0.57510671]
[1680425650073,0.825,1818.3,1818.1,1.43776678]
[1680425650469,0.825,1818.3,1818.2,0.57510671]
[1680425656678,21.5498,1818.3,1818.2,0.57510671]
[1680425657576,21.5498,1818.3,1818.1,1.43776678]
[1680425657776,0.823,1818.2,1818.1,1.43776678]
[1680425658580,0.823,1818.2,1818.1,0.86266007]
[1680425660481,1.39795349,1818.2,1818.1,0.86266007]
[1680425662781,1.39795349,1818.2,1818.1,0.86477092]
[1680425664480,1.39795349,1818.2,1818.0,1.15021342]
[1680425665077,16.7,1818.1,1818.0,1.15021342]
[1680425666479,16.7,1818.1,1818.0,1.97500139]
[1680425666681,16.7,1818.1,1818.0,1.43776678]
[1680425668683,17.27495349,1818.1,1818.0,1.43776678]
[1680425669288,16.7,1818.1,1818.0,1.43776678]
[1680425683601,1.39595349,1818.2,1818.0,1.43776678]
[1680425683890,1.39595349,1818.2,1818.1,1.15385914]
[1680425684687,18.09595349,1818.2,1818.1,1.15385914]
[1680425687001,17.27495349,1818.2,1818.1,1.15385914]
[1680425691101,17.27495349,1818.2,1818.1,1.97500139]
[1680425707926,16.7,1818.2,1818.1,1.97500139]
[1680425708834,17.27495349,1818.2,1818.1,1.97500139]
[1680425711319,17.27495349,1818.2,1818.1,8.21518049]
[1680425717030,17.27495349,1818.2,1818.1,9.04018049]
[1680425721533,16.7,1818.2,1818.1,9.04018049]
[1680425725430,17.27495349,1818.2,1818.1,9.04018049]
[1680425725735,16.7,1818.2,1818.1,9.04018049]
[1680425727230,17.27495349,1818.2,1818.1,9.04018049]
[1680425727737,16.7,1818.2,1818.1,9.04018049]
[1680425727936,0.57495349,1818.3,1818.1,9.04018049]
[1680425728136,0.57651844,1818.3,1818.2,6.95129393]
[1680425728637,0.57651844,1818.3,1818.2,12.57440925]
[1680425735344,0.57651844,1818.3,1818.2,12.65883165]
[1680425735545,0.57651844,1818.4,1818.3,1.0]
[1680425735744,0.57651844,1818.4,1818.3,3.74428989]
[1680425735943,0.57651844,1818.5,1818.3,9.74824264]
[1680425736144,0.57651844,1818.5,1818.4,6.18621561]
[1680425736547,1.4412961,1818.5,1818.4,6.18621561]
[1680425736741,0.57651844,1818.5,1818.4,6.18621561]
[1680425737547,0.86477766,1818.5,1818.4,6.18621561]
[1680425737746,1.44102948,1818.5,1818.4,6.18621561]
[1680425738149,0.57625182,1818.5,1818.4,6.18621561]
[1680425738341,0.57625182,1818.5,1818.4,11.95123444]
[1680425742048,0.57625182,1818.5,1818.4,10.95123444]
[1680425743744,0.57625182,1818.5,1818.4,11.03384055]
[1680425744649,0.57625182,1818.6,1818.5,1.0]
[1680425745051,0.57625182,1818.6,1818.5,6.85275017]
[1680425745243,0.57625182,1818.6,1818.5,8.00616578]
[1680425745645,0.57625182,1818.6,1818.5,6.85275017]
[1680425745842,0.57625182,1818.6,1818.5,7.71709658]
[1680425747146,0.57625182,1818.6,1818.5,8.54209658]
[1680425747753,1.44102948,1818.7,1818.5,8.54209658]
[1680425747955,0.57625182,1818.7,1818.6,0.57613088]
[1680425748249,0.57625182,1818.7,1818.6,6.60864505]
[1680425748447,17.27625182,1818.7,1818.6,6.60864505]
[1680425754857,17.27625182,1818.7,1818.6,6.60223594]
[1680425758862,17.27625182,1818.7,1818.6,6.68480736]
[1680425771767,17.27625182,1818.7,1818.6,7.54915377]
[1680425772568,17.27625182,1818.7,1818.6,6.979432]
[1680425773972,17.56477766,1818.7,1818.6,6.979432]
[1680425783091,0.86477766,1818.7,1818.6,6.93908559]
[1680425783293,0.57647526,1818.7,1818.6,12.77701126]
[1680425783890,0.57647526,1818.7,1818.6,11.62359565]
[1680425784492,0.57647526,1818.7,1818.6,12.77698889]
[1680425784693,0.57647526,1818.7,1818.6,11.77698889]
[1680425797009,0.57647526,1818.7,1818.6,11.77798889]
[1680425798208,0.57647526,1818.7,1818.6,11.30127883]
[1680425798406,1.44125292,1818.7,1818.6,11.30127883]
[1680425799605,1.44125292,1818.7,1818.6,7.26847883]
[1680425799606,0.86477766,1818.7,1818.6,7.26847883]
[1680425799801,0.86477766,1818.7,1818.6,6.11508559]
[1680425799999,0.86477766,1818.7,1818.6,0.08257142]
[1680425805614,0.86477766,1818.7,1818.6,1.23596466]
[1680425813816,5.36083688,1818.7,1818.6,0.94775178]
[1680425814519,5.36083688,1818.7,1818.6,0.08257142]
[1680425814520,4.36083688,1818.7,1818.6,0.08257142]
[1680425814815,5.36083688,1818.7,1818.6,0.08257142]
[1680425815207,4.36083688,1818.7,1818.6,0.08257142]
[1680425816103,5.36083688,1818.7,1818.6,0.08257142]
[1680425816507,4.36083688,1818.7,1818.6,0.08257142]
[1680425817211,5.18183688,1818.7,1818.6,0.08257142]
[1680425818417,6.18183688,1818.7,1818.6,0.08257142]
[1680425819011,6.18183688,1818.7,1818.5,0.86518036]
[1680425819212,1.0,1818.6,1818.5,0.86518036]
[1680425819412,1.86390954,1818.6,1818.5,0.86518036]
[1680425820210,0.86390954,1818.6,1818.5,0.86518036]
[1680425825821,0.86390954,1818.6,1818.4,0.86518036]
[1680425826021,0.86390954,1818.6,1818.5,0.86518036]
[1680425827018,1.68690954,1818.6,1818.5,0.86518036]
[1680425827524,1.68690954,1818.6,1818.4,0.86518036]
[1680425827825,0.57589844,1818.5,1818.4,0.86518036]
[1680425835139,1.43980798,1818.6,1818.4,1.97839324]
[1680425835338,0.57589844,1818.6,1818.5,0.86451176]
[1680425835540,0.57589844,1818.6,1818.5,1.86451176]
[1680425838540,1.43980798,1818.6,1818.5,1.86451176]
[1680425838843,0.57589844,1818.6,1818.5,0.86451176]
[1680425839244,0.57589844,1818.6,1818.5,1.86451176]
[1680425839644,0.57589844,1818.6,1818.5,0.86451176]
[1680425842542,1.43980798,1818.6,1818.5,0.86451176]
[1680425842744,0.57589844,1818.6,1818.5,0.86451176]
[1680425843535,0.57589844,1818.6,1818.4,2.97839324]
[1680425844548,0.57589844,1818.6,1818.5,1.15339324]
[1680425845348,1.44011584,1818.6,1818.5,0.86487323]
[1680425845646,0.5762063,1818.6,1818.4,2.97839324]
[1680425845846,0.5762063,1818.6,1818.5,1.15339324]
[1680425847847,1.44011584,1818.6,1818.5,1.15339324]
[1680425848749,1.52007628,1818.6,1818.5,1.15339324]
[1680425849345,0.94386998,1818.6,1818.5,0.86498005]
[1680425849850,0.94386998,1818.6,1818.4,2.97239324]
[1680425850051,0.57628043,1818.5,1818.4,2.97239324]
[1680425850351,0.57628043,1818.5,1818.4,3.44887436]
[1680425851251,0.57628043,1818.5,1818.4,2.44887436]
[1680425852040,0.57628043,1818.5,1818.4,1.97239324]
[1680425852245,0.57628043,1818.5,1818.4,2.44891858]
[1680425853647,0.57628043,1818.5,1818.4,2.44894098]
[1680425854549,0.57628043,1818.5,1818.4,1.62994098]
[1680425856252,0.57628043,1818.5,1818.4,1.15339324]
[1680425856759,0.57628043,1818.5,1818.4,1.6300319]
[1680425857254,1.44018997,1818.5,1818.4,1.6300319]
[1680425857856,0.57628043,1818.5,1818.4,1.6300319]
[1680425858448,1.44018997,1818.5,1818.4,1.6300319]
[1680425860257,0.57628043,1818.5,1818.4,1.6300319]
[1680425860957,1.44018997,1818.5,1818.4,1.6300319]
[1680425861161,0.86390954,1818.5,1818.4,1.6300319]
[1680425863161,0.86390954,1818.5,1818.4,1.15339324]
[1680425863762,0.9439063,1818.5,1818.4,1.15339324]
[1680425864555,0.9439063,1818.5,1818.4,1.63010624]
[1680425865558,0.65641059,1818.5,1818.4,3.74293828]
[1680425865757,0.57641383,1818.7,1818.5,0.825]
[1680425865957,0.57641383,1818.7,1818.6,5.95059394]
[1680425866157,0.57641383,1818.7,1818.6,5.66171096]
[1680425866353,0.57641383,1818.7,1818.6,2.45391096]
[1680425866859,0.57641383,1818.7,1818.6,5.66171096]
[1680425867964,0.57641383,1818.7,1818.6,5.18499796]
[1680425870767,1.44032337,1818.8,1818.6,5.18499796]
[1680425870968,1.44032337,1818.8,1818.7,1.68960757]
[1680425871161,0.86390954,1818.8,1818.7,1.68960757]
[1680425871861,0.86390954,1818.8,1818.7,2.68960757]
[1680425871862,1.4398817,1818.8,1818.7,2.68960757]
[1680425872063,0.57597216,1818.8,1818.7,2.97819796]
[1680425872460,0.57597216,1818.8,1818.7,0.825]
[1680425872970,0.57597216,1818.8,1818.7,1.68947666]
[1680425874469,16.7,1818.9,1818.7,1.68947666]
[1680425874860,16.7,1818.9,1818.8,0.5762967]
[1680425875268,17.85303688,1818.9,1818.7,0.5762967]
[1680425875470,17.85303688,1818.9,1818.6,1.4002967]
[1680425875471,5.36083688,1818.8,1818.6,1.4002967]
[1680425875672,3.79303688,1818.7,1818.5,0.57638031]
[1680425875870,3.79303688,1818.7,1818.4,0.57642888]
[1680425875871,7.82583688,1818.6,1818.4,0.57642888]
[1680425876164,1.825,1818.4,1818.3,0.57642888]
[1680425876370,4.8498,1818.4,1818.3,0.57642888]
[1680425876873,4.8498,1818.4,1818.2,0.57642888]
[1680425877178,0.57554346,1818.3,1818.2,0.57642888]
[1680425877366,0.57554346,1818.3,1818.2,1.44102972]
[1680425877669,0.57554346,1818.3,1818.2,0.57642888]
[1680425878575,0.57554346,1818.3,1818.2,0.86460084]
[1680425878774,0.64703704,1818.3,1818.2,1.4406812]
[1680425878972,0.64703704,1818.3,1818.2,0.57608036]
[1680425885783,0.07149358,1818.3,1818.2,0.57608036]
[1680425885974,0.64703704,1818.3,1818.2,0.57608036]
[1680425886283,0.07149358,1818.3,1818.2,0.57608036]
[1680425892485,0.07149358,1818.3,1818.1,2.4406812]
[1680425892687,0.07149358,1818.3,1818.2,0.57608036]
[1680425907702,1.40054346,1818.5,1818.2,0.57608036]
[1680425907904,0.07156394,1818.3,1818.2,0.57608036]
[1680425908100,1.40054346,1818.5,1818.2,0.57608036]
[1680425908406,3.2078,1818.4,1818.2,0.57608036]
[1680425908903,0.07156626,1818.3,1818.2,0.57608036]
[1680425914201,0.07156626,1818.3,1818.2,1.4406812]
[1680425914401,0.07156626,1818.3,1818.2,0.86460084]
[1680425915605,3.2078,1818.4,1818.2,0.86460084]
[1680425915804,0.57554346,1818.4,1818.3,0.57575086]
[1680425917812,0.57554346,1818.4,1818.3,1.4403517]
[1680425918515,0.57554346,1818.4,1818.3,1.44091295]
[1680425919915,1.9765293,1818.5,1818.2,2.15280112]
[1680425920117,0.57651894,1818.3,1818.2,2.15280112]
[1680425920414,0.57651894,1818.3,1818.2,2.55972231]
[1680425921210,0.57651894,1818.3,1818.2,2.56091659]
[1680425921409,0.57651894,1818.3,1818.2,1.40692119]
[1680425921817,0.57651894,1818.3,1818.2,1.5609196]
[1680425922205,0.57651894,1818.3,1818.2,1.56091529]
[1680425922412,0.57651894,1818.3,1818.2,0.40692119]
[1680425923815,0.64812154,1818.3,1818.2,0.40692119]
[1680425929536,0.64812154,1818.3,1818.2,1.84900213]
[1680425929733,0.64812154,1818.3,1818.2,0.40692119]
[1680425930031,0.64812154,1818.3,1818.2,1.84900213]
[1680425934126,0.0716026,1818.3,1818.2,2.23192119]
[1680425934327,0.0716026,1818.3,1818.2,3.67418516]
[1680425935127,0.0716026,1818.3,1818.2,3.67422583]
[1680425943036,0.0716026,1818.3,1818.2,2.23192119]
[1680425943436,0.0716026,1818.3,1818.2,8.13906866]
[1680425944744,0.0716026,1818.3,1818.2,8.96406866]
[1680425945341,1.44165062,1818.5,1818.3,1.0]
[1680425945642,1.44165062,1818.5,1818.4,2.97741545]
[1680425945838,1.44165062,1818.5,1818.4,9.13559096]
[1680425946943,0.57651894,1818.5,1818.4,9.13559096]
[1680425947147,1.44182399,1818.5,1818.4,9.13559096]
[1680425947641,1.4418254,1818.5,1818.4,9.13559096]
[1680425947843,0.86513168,1818.5,1818.4,9.13559096]
[1680425948138,1.44182654,1818.5,1818.4,9.13559096]
[1680425948935,0.86513168,1818.5,1818.4,7.98217551]
[1680425949140,1.44179229,1818.5,1818.4,7.98217551]
[1680425950240,1.44179229,1818.5,1818.4,9.13559096]
[1680425950440,1.44179229,1818.5,1818.4,7.98217551]
[1680425950843,1.44179229,1818.5,1818.4,6.98217551]
[1680425951446,1.44179229,1818.5,1818.4,8.13559096]
[1680425951745,1.44179229,1818.5,1818.4,6.98217551]
[1680425951947,1.44179229,1818.5,1818.4,8.13559096]
[1680425952245,1.44179229,1818.5,1818.4,6.98217551]
[1680425952948,0.57666061,1818.5,1818.4,8.13559096]
[1680425953950,1.51355747,1818.5,1818.4,6.98217551]
[1680425954545,0.64842579,1818.5,1818.4,8.13559096]
[1680425954942,1.51355747,1818.5,1818.4,6.98217551]
[1680425955343,0.64842579,1818.5,1818.4,8.13559096]
[1680425956051,0.64842579,1818.5,1818.4,6.98217551]
[1680425957150,0.64842579,1818.5,1818.4,6.15817551]
[1680425957447,0.64842579,1818.5,1818.4,7.31159096]
[1680425957850,0.64842579,1818.5,1818.4,6.15817551]
[1680425958247,0.64842579,1818.5,1818.4,7.31159096]
[1680425958441,0.64842579,1818.5,1818.4,6.15817551]
[1680425959154,0.64842579,1818.5,1818.4,7.31159096]
[1680425960653,1.51355747,1818.5,1818.4,7.31159096]
[1680425961152,0.64842579,1818.5,1818.4,7.31159096]
[1680425962350,0.64842579,1818.5,1818.4,7.71826108]
[1680425962956,0.64842579,1818.5,1818.4,7.31159096]
[1680425963251,0.64842579,1818.5,1818.4,7.71827032]
[1680425963456,0.64842579,1818.5,1818.4,7.71826263]
[1680425963758,0.64842579,1818.5,1818.4,7.71825858]
[1680425965559,0.64842579,1818.5,1818.4,7.31159096]
[1680425966555,0.64842579,1818.5,1818.4,7.71826361]
[1680425966854,0.64842579,1818.5,1818.4,7.31159096]
[1680425967062,0.64842579,1818.5,1818.4,8.13659096]
[1680425972161,0.64842579,1818.5,1818.4,8.54304355]
[1680425972765,0.64842579,1818.5,1818.4,8.13659096]
[1680425974363,0.64842579,1818.5,1818.4,8.54044537]
[1680425976374,1.51355747,1818.5,1818.4,8.54044537]
[1680425976964,1.51355747,1818.5,1818.4,7.71544537]
[1680425977867,0.93689686,1818.5,1818.4,7.71544537]
[1680425982579,17.63689686,1818.5,1818.4,7.71544537]
[1680426009699,17.63689686,1818.5,1818.4,1.55726986]
[1680426010196,17.63689686,1818.5,1818.4,1.15341545]
[1680426016303,16.77176518,1818.5,1818.4,1.15341545]
[1680426017101,19.97956518,1818.5,1818.4,1.15341545]
[1680426025209,21.13109448,1818.5,1818.3,1.97741545]
[1680426025406,0.86566748,1818.4,1818.3,0.824]
[1680426025898,0.93760105,1818.4,1818.3,1.22819629]
[1680426026095,17.63760105,1818.4,1818.3,1.22819629]
[1680426026498,0.93760105,1818.4,1818.3,1.22819629]
[1680426026709,1.51468804,1818.4,1818.3,2.6699656]
[1680426026903,1.51468804,1818.4,1818.3,1.22819629]
[1680426027513,1.51468804,1818.4,1818.3,2.6699656]
[1680426028708,0.64902056,1818.4,1818.3,2.6699656]
[1680426043119,0.64902056,1818.4,1818.3,2.66910131]
[1680426043120,0.07193357,1818.4,1818.3,2.66910131]
[1680426043425,0.64902056,1818.4,1818.3,8.46979811]
[1680426043722,0.64902056,1818.4,1818.3,11.67759811]
[1680426043919,0.07193357,1818.4,1818.3,11.67760019]
[1680426044122,0.64902056,1818.4,1818.3,11.67760019]
[1680426044721,0.07193357,1818.4,1818.3,11.67760019]
[1680426044933,0.07193357,1818.4,1818.3,10.23669309]
[1680426045133,0.64902056,1818.4,1818.3,11.67768135]
[1680426045335,0.07193357,1818.4,1818.3,11.67766717]
[1680426046041,0.64902056,1818.4,1818.3,11.67766717]
[1680426046633,0.07193357,1818.4,1818.3,11.67766717]
[1680426046826,0.07193357,1818.4,1818.3,10.23669309]
[1680426047030,0.64902056,1818.4,1818.3,12.49868348]
[1680426047335,0.07193357,1818.4,1818.3,11.05769309]
[1680426047531,0.07193357,1818.4,1818.3,12.4988126]
[1680426048437,0.64902056,1818.4,1818.3,12.4988126]
[1680426048738,0.07193357,1818.4,1818.3,12.4988126]
[1680426049242,0.07193357,1818.4,1818.3,11.05769309]
[1680426049439,0.07193357,1818.4,1818.3,12.49875077]
[1680426050337,0.64902056,1818.4,1818.3,12.49875077]
[1680426050535,0.07193357,1818.4,1818.3,12.49875077]
[1680426052843,0.07193357,1818.4,1818.3,12.49863027]
[1680426055240,0.64902056,1818.4,1818.3,12.49863027]
[1680426055445,0.07193357,1818.4,1818.3,12.49863027]
[1680426058154,0.07193357,1818.4,1818.3,11.05769309]
[1680426058449,0.07193357,1818.4,1818.3,12.49854913]
[1680426058648,0.07193357,1818.4,1818.3,11.05769309]
[1680426058947,1.44275447,1818.6,1818.3,11.05769309]
[1680426058948,0.57708699,1818.6,1818.3,11.05769309]
[1680426059247,0.57708699,1818.6,1818.5,1.97656381]
[1680426059448,0.57708699,1818.6,1818.5,2.3807601]
[1680426059645,1.44275447,1818.6,1818.5,2.3807601]
[1680426059838,0.57708699,1818.6,1818.5,2.3807601]
[1680426060037,1.44275447,1818.6,1818.5,2.3807601]
[1680426060440,0.57708699,1818.6,1818.5,2.3807601]
[1680426060644,0.6504525,1818.6,1818.5,2.3807601]
[1680426061748,0.64450773,1818.6,1818.5,4.43599629]
[1680426061950,0.64450773,1818.6,1818.5,5.58821616]
[1680426065443,0.64450773,1818.6,1818.5,2.38041616]
[1680426066948,0.64450773,1818.6,1818.5,2.37841616]
[1680426067553,0.64450773,1818.6,1818.5,1.97421987]
[1680426067754,0.64450773,1818.6,1818.5,2.37792675]
[1680426067946,0.64450773,1818.6,1818.5,1.97421987]
[1680426077158,0.64450773,1818.6,1818.5,1.97621987]
[1680426078460,0.64450773,1818.6,1818.5,2.37999007]
[1680426078958,0.64450773,1818.6,1818.5,1.97621987]
[1680426082256,0.64450773,1818.6,1818.5,2.38009151]
[1680426082764,0.64450773,1818.6,1818.5,1.97621987]
[1680426083155,0.64450773,1818.6,1818.5,2.38009833]
[1680426096574,1.51017521,1818.6,1818.5,2.38009833]
[1680426096774,1.51017521,1818.6,1818.5,1.22787846]
[1680426096974,1.51017521,1818.6,1818.5,1.22587846]
[1680426097274,0.64450773,1818.6,1818.5,1.22587846]
[1680426098674,1.51017521,1818.6,1818.5,1.22587846]
[1680426101380,1.51017521,1818.6,1818.5,2.22587846]
[1680426101584,0.60824725,1818.6,1818.5,3.66658322]
[1680426101774,0.60824725,1818.6,1818.5,9.87949491]
[1680426103583,1.47391473,1818.6,1818.5,9.87949491]
[1680426104183,0.60824725,1818.6,1818.5,9.87949491]
[1680426104483,1.47391473,1818.6,1818.5,9.87949491]
[1680426105487,0.60824725,1818.6,1818.5,9.87949491]
[1680426105878,0.60824725,1818.6,1818.5,8.87949491]
[1680426106887,1.47391473,1818.6,1818.5,8.87949491]
[1680426107088,1.47391473,1818.6,1818.5,8.88149491]
[1680426107488,0.60824725,1818.6,1818.5,8.88149491]
[1680426109195,1.47391473,1818.6,1818.5,8.88149491]
[1680426109586,0.60824725,1818.6,1818.5,8.88149491]
[1680426140917,0.60824725,1818.6,1818.5,9.70649491]
[1680426151020,0.60824725,1818.6,1818.5,8.88149491]
[1680426157025,0.60824725,1818.6,1818.5,9.70649491]
[1680426164132,0.60824725,1818.6,1818.5,8.26579015]
[1680426164332,0.60824725,1818.6,1818.5,9.26579015]
[1680426164632,0.03710503,1818.6,1818.5,9.26579015]
[1680426166530,0.03710503,1818.6,1818.5,10.70784552]
[1680426166732,0.03710503,1818.6,1818.5,9.26579015]
[1680426168827,0.03710503,1818.6,1818.5,10.7077807]
[1680426169429,0.03710503,1818.6,1818.5,9.7077807]
[1680426172540,0.03710503,1818.6,1818.5,9.70777273]
[1680426172733,0.03710503,1818.6,1818.5,9.70779912]
[1680426181744,0.6141243,1818.6,1818.5,9.70779912]
[1680426190762,0.6141243,1818.6,1818.5,8.05879912]
[1680426194565,0.6141243,1818.6,1818.5,11.26659912]
[1680426194765,0.6141243,1818.6,1818.5,12.09059912]
[1680426197274,0.6141243,1818.6,1818.5,10.64859015]
[1680426197469,0.03710503,1818.6,1818.5,10.64859015]
[1680426197770,0.6141243,1818.6,1818.5,10.64859015]
[1680426199677,0.03710503,1818.6,1818.5,10.64859015]
[1680426213093,0.6141243,1818.6,1818.5,12.09100957]
[1680426213395,0.6141243,1818.6,1818.5,8.88320957]
[1680426215902,0.03710503,1818.6,1818.5,7.44079015]
[1680426216588,0.03710503,1818.6,1818.5,8.44079015]
[1680426223000,0.03710503,1818.6,1818.5,7.44079015]
[1680426227402,0.6141243,1818.6,1818.5,8.88322903]
[1680426245610,0.90277251,1818.6,1818.5,1.55798374]
[1680426245913,1.72505113,1818.6,1818.4,1.15410528]
[1680426246116,0.57663157,1818.5,1818.4,1.15410528]
[1680426246511,0.61452479,1818.5,1818.4,0.40367331]
[1680426246710,0.61452479,1818.5,1818.3,1.84611219]
[1680426247016,0.61452479,1818.5,1818.4,0.40367331]
[1680426247218,0.61452479,1818.5,1818.3,1.84611219]
[1680426247417,0.61452479,1818.5,1818.4,0.40367331]
[1680426247614,0.61452479,1818.5,1818.3,1.84611219]
[1680426247815,0.61452479,1818.5,1818.4,0.40367331]
[1680426248016,0.61452479,1818.5,1818.4,1.15345004]
[1680426248919,0.61452479,1818.5,1818.3,1.84611219]
[1680426249121,0.61452479,1818.5,1818.4,0.40367331]
[1680426249412,0.61452479,1818.5,1818.3,1.84611219]
[1680426249719,0.61452479,1818.5,1818.4,1.15343615]
[1680426250112,0.03789322,1818.5,1818.4,0.40367331]
[1680426250315,0.03789322,1818.5,1818.4,1.15328253]
[1680426250513,0.61452479,1818.5,1818.4,1.15328253]
[1680426251419,0.03789322,1818.5,1818.4,0.40367331]
[1680426251721,0.03789322,1818.5,1818.4,2.55693968]
[1680426252614,0.61452479,1818.5,1818.4,2.55693968]
[1680426253809,0.03789322,1818.5,1818.4,2.55693968]
[1680426255518,0.03789322,1818.5,1818.4,1.55693968]
[1680426255717,0.03789322,1818.5,1818.4,1.15326637]
[1680426257215,0.03789322,1818.5,1818.4,1.55693968]
[1680426272433,0.61452479,1818.5,1818.4,1.55693968]
[1680426277033,0.61452479,1818.5,1818.4,0.40367331]
[1680426277238,0.61452479,1818.5,1818.4,1.15317955]
[1680426277440,0.61452479,1818.5,1818.4,1.55685286]
[1680426277936,0.61452479,1818.5,1818.4,0.40367331]
[1680426278940,0.61452479,1818.5,1818.4,1.15321696]
[1680426279237,0.61452479,1818.5,1818.4,0.40367331]
[1680426279735,0.61452479,1818.5,1818.4,1.55700277]
[1680426279936,4.68727089,1818.5,1818.4,1.15332946]
[1680426280542,0.61452479,1818.5,1818.4,1.55656449]
[1680426280937,0.61452479,1818.5,1818.4,1.15332946]
[1680426281239,3.82232479,1818.5,1818.4,1.55660425]
[1680426283638,4.68727089,1818.5,1818.4,1.55660425]
[1680426285145,4.11063932,1818.5,1818.4,1.55660425]
[1680426287356,4.11063932,1818.5,1818.4,1.15332946]
[1680426288048,4.68756559,1818.5,1818.4,1.15332946]
[1680426288751,4.11063932,1818.5,1818.4,1.15332946]
[1680426318769,4.39722252,1818.5,1818.4,1.15332946]
[1680426318971,4.39722252,1818.5,1818.4,0.86570931]
[1680426318972,5.22022252,1818.5,1818.4,0.86570931]
[1680426323272,5.22022252,1818.5,1818.4,0.57697302]
[1680426323473,5.22022252,1818.5,1818.4,1.44268233]
[1680426323673,5.22022252,1818.5,1818.4,0.57697302]
[1680426323870,2.01442252,1818.5,1818.4,0.86570931]
[1680426324070,5.22222252,1818.5,1818.4,0.86570931]
[1680426325275,21.92222252,1818.5,1818.4,0.86570931]
[1680426326378,21.92222252,1818.5,1818.4,1.44253592]
[1680426326770,21.92222252,1818.5,1818.4,0.57682661]
[1680426327180,21.92222252,1818.5,1818.4,1.44253592]
[1680426328383,21.92222252,1818.5,1818.4,0.57682661]
[1680426333180,21.6355935,1818.5,1818.4,0.86570931]
[1680426337080,20.8105935,1818.5,1818.4,0.86570931]
[1680426338889,19.94569322,1818.5,1818.4,1.44236309]
[1680426339091,20.81058691,1818.5,1818.4,0.86570931]
[1680426345690,19.94569322,1818.5,1818.4,0.86570931]
[1680426349299,20.81076161,1818.5,1818.4,0.86570931]
[1680426350190,19.94569322,1818.5,1818.4,0.86570931]
[1680426356300,21.09722252,1818.5,1818.4,0.86570931]
[1680426363410,1.18942252,1818.5,1818.4,1.86570931]
[1680426363611,1.48027632,1818.5,1818.4,3.3723416]